bitfinex/quotes_ETHUSD_20250422
["timestamp","ask_amount","ask_price","bid_price","bid_amount"]
[1745317664358,7.43820906,1613.3,1612.8,10.46392052]
[1745317664662,6.19906727,1613.2,1612.8,4.26378369]
[1745317664863,12.39823664,1613.2,1612.8,4.26378369]
[1745317665065,6.19906727,1613.2,1612.8,4.26378369]
[1745317666064,6.19906727,1613.2,1612.6,7.35243069]
[1745317666065,6.1999993,1613.0,1612.6,0.60149962]
[1745317666231,6.19993709,1613.0,1612.6,0.60149962]
[1745317666571,6.20058314,1612.8,1612.6,0.60149962]
[1745317667472,12.40130948,1612.8,1612.6,0.60149962]
[1745317667672,6.20058314,1612.8,1612.6,0.60149962]
[1745317668653,12.40134563,1612.8,1612.6,0.60149962]
[1745317668853,6.20058314,1612.8,1612.6,0.60149962]
[1745317669241,13.64139716,1612.8,1612.6,0.60149962]
[1745317669438,6.20078129,1612.7,1612.6,0.60149962]
[1745317670464,7.00298129,1612.7,1612.6,0.60149962]
[1745317670660,7.00298129,1612.7,1612.6,1e-08]
[1745317671262,6.20326887,1612.1,1611.7,16.36332338]
[1745317671782,6.20326887,1612.1,1611.7,0.8095]
[1745317671971,6.20348088,1612.0,1611.7,0.8095]
[1745317672176,6.20348088,1612.0,1611.5,35.98560771]
[1745317672177,0.8022,1612.0,1611.5,0.8095]
[1745317672377,6.20498146,1611.7,1611.2,0.8095]
[1745317672579,7.00619052,1611.9,1611.3,3.0]
[1745317672887,7.00548724,1612.1,1611.5,6.20518311]
[1745317673189,12.75220202,1612.5,1611.5,6.20518311]
[1745317673190,0.8022,1612.4,1612.0,6.20325616]
[1745317673485,6.20227564,1612.4,1611.9,0.8095]
[1745317673689,6.20170984,1612.5,1612.0,9.75322759]
[1745317673895,0.70029813,1612.6,1612.0,9.75322759]
[1745317674190,6.20194121,1612.4,1612.0,3.55]
[1745317674496,12.40368328,1612.5,1612.0,9.75331987]
[1745317674668,6.20136498,1612.6,1612.1,6.20294599]
[1745317675390,6.20215894,1612.4,1611.9,7.01319367]
[1745317675595,6.20215894,1612.4,1612.0,3.0]
[1745317675796,6.202596,1612.3,1611.9,3.8095]
[1745317675984,6.20215894,1612.4,1612.0,6.20346811]
[1745317676384,6.20215894,1612.4,1612.0,3.0]
[1745317676581,12.40443623,1612.4,1612.0,3.0]
[1745317676894,6.20239786,1612.3,1612.0,3.0]
[1745317677194,6.20233664,1612.3,1612.0,3.0]
[1745317678791,7.44253735,1612.4,1612.0,3.0]
[1745317679098,6.20176362,1612.5,1612.1,3.0]
[1745317679596,6.20204974,1612.4,1612.1,3.0]
[1745317680096,6.20176362,1612.5,1612.1,3.0]
[1745317680287,6.20176362,1612.5,1612.1,6.28841711]
[1745317680486,12.28132726,1612.6,1612.2,0.8203]
[1745317680685,14.2097616,1612.6,1612.2,0.8203]
[1745317680884,1.92845142,1612.6,1612.2,0.8203]
[1745317681091,6.20021221,1612.9,1612.3,12.4905548]
[1745317681265,12.39966263,1613.0,1612.5,12.4896573]
[1745317681462,6.19947492,1613.1,1612.8,0.8203]
[1745317681680,12.39899731,1613.1,1612.8,0.8203]
[1745317681892,6.19971158,1613.0,1612.8,0.8203]
[1745317682211,1.23991865,1613.0,1612.6,0.8203]
[1745317682371,6.19976214,1613.0,1612.7,3.0]
[1745317682700,6.20025941,1612.9,1612.7,3.0]
[1745317682879,6.20025941,1612.9,1612.6,0.8203]
[1745317683200,12.40044973,1612.9,1612.6,3.8203]
[1745317683499,12.40128946,1612.8,1612.6,4.27529603]
[1745317683699,6.20078129,1612.7,1612.6,1.27529603]
[1745317683906,6.20078129,1612.7,1612.6,0.45499603]
[1745317684105,6.20142183,1612.6,1612.4,0.8203]
[1745317684409,6.20155038,1612.5,1612.4,0.8203]
[1745317684607,12.40288709,1612.6,1612.4,0.8203]
[1745317685064,6.20058443,1612.8,1612.4,0.8203]
[1745317685405,6.19980241,1613.0,1612.5,10.02168378]
[1745317685903,6.20016757,1612.9,1612.6,6.062]
[1745317686101,6.19980241,1613.0,1612.7,3.0]
[1745317686268,12.39975081,1613.0,1612.7,3.0]
[1745317686872,6.20002139,1612.9,1612.7,3.0]
[1745317687683,6.19980241,1613.0,1612.7,3.0]
[1745317688006,6.19964532,1613.0,1612.7,3.0]
[1745317688192,6.19906859,1613.2,1612.7,9.20058389]
[1745317688389,6.19942535,1613.1,1612.8,0.7552]
[1745317688931,6.19963701,1613.0,1612.8,0.7552]
[1745317689801,6.19963701,1613.0,1612.7,3.0]
[1745317689802,6.20039682,1612.8,1612.7,3.0]
[1745317690002,7.50650087,1613.2,1612.7,3.0]
[1745317690208,6.20039682,1612.8,1612.7,3.0]
[1745317690829,6.20039682,1612.8,1612.6,7.30001334]
[1745317691127,6.20078129,1612.7,1612.6,10.30001334]
[1745317691327,6.20078129,1612.7,1612.6,6.062]
[1745317691527,6.20155038,1612.5,1612.4,0.7687]
[1745317691730,6.20132586,1612.6,1612.4,3.7687]
[1745317692229,6.20132586,1612.6,1612.4,4.22389304]
[1745317692561,6.20120284,1612.6,1612.4,4.22389304]
[1745317693436,13.64137419,1612.8,1612.4,4.22389304]
[1745317693728,12.40197976,1612.7,1612.4,4.22389304]
[1745317694298,6.20088365,1612.7,1612.4,4.22389304]
[1745317694636,6.20088365,1612.7,1612.4,3.7687]
[1745317694637,6.20155038,1612.5,1612.4,3.7687]
[1745317694833,12.40282515,1612.6,1612.4,3.7687]
[1745317695000,6.20135736,1612.6,1612.4,3.7687]
[1745317695428,12.40283994,1612.6,1612.4,3.7687]
[1745317695632,6.20135736,1612.6,1612.4,3.7687]
[1745317696024,6.94506607,1612.7,1612.4,3.7687]
[1745317697540,6.20129201,1612.6,1612.4,3.7687]
[1745317697718,6.94506607,1612.7,1612.4,3.7687]
[1745317697905,13.14613108,1612.7,1612.4,3.7687]
[1745317698240,6.20117636,1612.6,1612.4,3.7687]
[1745317699420,6.20155038,1612.5,1612.4,3.7687]
[1745317699626,6.20117636,1612.6,1612.4,3.7687]
[1745317699838,6.20155038,1612.5,1612.4,3.7687]
[1745317700022,6.20095229,1612.7,1612.4,3.7687]
[1745317700530,18.48058757,1612.9,1612.4,9.97037935]
[1745317700734,6.08,1612.9,1612.7,3.0]
[1745317701045,6.19943036,1613.1,1612.7,3.55]
[1745317701231,0.75070172,1613.1,1612.7,9.75078031]
[1745317701438,6.95005837,1613.1,1612.7,15.65378031]
[1745317701641,6.19935665,1613.1,1612.7,15.65353715]
[1745317702339,6.19847517,1613.3,1612.8,0.7687]
[1745317702645,6.19949771,1613.1,1612.8,0.7687]
[1745317702851,6.19966147,1613.0,1612.8,0.7687]
[1745317703051,6.19966147,1613.0,1612.5,0.7687]
[1745317703238,1e-08,1612.9,1612.6,6.51]
[1745317703550,4.07388652,1613.7,1613.6,9.19732275]
[1745317703877,4.07388652,1613.7,1613.6,6.29417741]
[1745317704157,4.07388652,1613.7,1613.6,12.49150016]
[1745317704355,4.07388652,1613.7,1613.6,6.29417741]
[1745317704872,4.07388652,1613.7,1613.6,12.49150016]
[1745317705224,4.07388652,1613.7,1613.6,6.29417741]
[1745317705738,4.07388652,1613.7,1613.6,12.95097484]
[1745317706125,4.07388652,1614.0,1613.6,12.95097484]
[1745317706327,10.26994743,1614.0,1613.6,6.75365209]
[1745317706534,4.07388652,1614.0,1613.6,12.95093499]
[1745317707030,4.07388652,1614.0,1613.6,12.49146031]
[1745317707230,4.07388652,1614.0,1613.6,12.49125084]
[1745317707440,4.07388652,1614.0,1613.6,9.19707343]
[1745317708458,4.07388652,1614.0,1613.7,10.63407332]
[1745317708660,4.07388652,1614.0,1613.8,7.01675743]
[1745317709652,13.03675189,1614.4,1614.0,0.55]
[1745317709852,12.3882636,1614.5,1613.9,19.40434768]
[1745317710063,7.43327241,1614.4,1613.9,19.40434768]
[1745317710365,1.23882636,1614.4,1614.0,6.19571706]
[1745317710518,6.19406359,1614.5,1614.0,6.19571706]
[1745317710721,6.8407,1614.4,1613.6,10.5504446]
[1745317710924,6.19528255,1614.2,1613.7,10.01726763]
[1745317711269,12.38988039,1614.3,1613.8,6.19644525]
[1745317711449,6.19493791,1614.3,1613.8,10.08387916]
[1745317711765,13.03518067,1614.4,1613.9,7.01643769]
[1745317711925,6.19465781,1614.3,1613.9,3.8204]
[1745317712264,13.03518067,1614.4,1613.9,10.01639732]
[1745317712432,13.03518067,1614.4,1613.9,3.8204]
[1745317712638,12.27448067,1614.4,1613.9,3.8204]
[1745317712973,12.2743327,1614.4,1614.0,3.88743391]
[1745317713142,6.1943327,1614.4,1614.0,3.88743391]
[1745317713552,12.38816612,1614.5,1614.0,10.08315154]
[1745317713967,6.19426857,1614.4,1614.0,10.08315154]
[1745317715160,6.19426857,1614.4,1614.0,3.88743391]
[1745317717530,6.19426857,1614.4,1614.1,0.55]
[1745317718066,12.3882933,1614.5,1614.1,3.55]
[1745317718442,6.19425674,1614.4,1614.1,3.55]
[1745317720364,6.19425674,1614.4,1614.1,3.0]
[1745317720533,6.1948846,1614.3,1614.1,3.0]
[1745317720731,6.1948846,1614.3,1614.0,0.55]
[1745317720930,6.19437185,1614.4,1614.0,0.55]
[1745317721366,12.38887652,1614.4,1614.0,0.55]
[1745317721535,12.38892486,1614.4,1614.0,0.55]
[1745317721860,6.1947506,1614.3,1614.0,0.55]
[1745317723967,12.38967712,1614.3,1614.0,0.55]
[1745317724175,6.1947506,1614.3,1614.0,0.55]
[1745317724750,6.19502737,1614.2,1614.0,0.55]
[1745317726192,6.1947506,1614.3,1614.0,0.55]
[1745317726911,6.19448475,1614.4,1614.0,0.55]
[1745317727083,6.1947433,1614.3,1614.0,0.55]
[1745317727694,12.38963615,1614.3,1614.0,0.55]
[1745317727893,12.38964779,1614.3,1614.0,0.55]
[1745317728096,6.19520697,1614.2,1613.9,3.8204]
[1745317728301,13.62863227,1614.3,1613.9,3.8204]
[1745317728499,6.1950218,1614.2,1613.9,3.8204]
[1745317728807,6.1947433,1614.3,1613.9,3.8204]
[1745317729317,6.19450511,1614.4,1614.1,3.2887099]
[1745317730833,6.19407846,1614.5,1614.1,3.2887099]
[1745317730834,12.38825074,1614.5,1614.1,3.2887099]
[1745317731190,6.19439267,1614.4,1614.1,3.2887099]
[1745317731690,6.19406575,1614.5,1614.1,10.48748903]
[1745317731890,12.38819307,1614.5,1614.1,3.2887099]
[1745317732090,6.19406575,1614.5,1614.1,3.2887099]
[1745317732522,6.19406575,1614.5,1614.2,3.0]
[1745317733230,0.7607,1614.6,1614.3,3.2887099]
[1745317733530,6.19327866,1614.7,1614.5,3.2887099]
[1745317733734,12.38599982,1614.8,1614.5,3.2887099]
[1745317733934,6.19297216,1614.8,1614.5,3.2887099]
[1745317734097,12.38596534,1614.8,1614.5,3.2887099]
[1745317734426,6.19297216,1614.8,1614.5,3.2887099]
[1745317734729,6.19297216,1614.8,1614.5,4.0872099]
[1745317734945,0.7698,1614.9,1614.5,7.41608089]
[1745317735162,6.19348445,1614.6,1614.5,3.0]
[1745317735441,6.19425173,1614.4,1614.2,3.2887099]
[1745317735646,6.19425173,1614.4,1614.3,3.0]
[1745317736236,6.19407033,1614.5,1614.2,3.2887099]
[1745317736540,12.38746658,1614.6,1614.2,3.2887099]
[1745317736731,12.38755137,1614.6,1614.2,3.2887099]
[1745317736932,6.1944388,1614.4,1614.2,3.2887099]
[1745317737442,6.19391934,1614.5,1614.2,3.2887099]
[1745317737956,6.19391934,1614.5,1614.1,0.06194581]
[1745317738097,6.19542203,1614.1,1613.7,4.1164099]
[1745317738303,6.19558887,1614.1,1613.8,0.41164099]
[1745317738521,6.19586142,1614.0,1613.8,0.41164099]
[1745317739737,6.19558887,1614.1,1613.8,0.41164099]
[1745317740126,6.1957932,1614.0,1613.7,4.1164099]
[1745317740323,13.20614847,1614.1,1613.7,4.1164099]
[1745317740523,6.19550226,1614.1,1613.7,10.31323694]
[1745317740826,6.19516562,1614.2,1613.9,3.2887099]
[1745317741014,12.39056514,1614.2,1613.9,3.2887099]
[1745317741336,12.39120719,1614.1,1613.7,7.02438785]
[1745317741546,12.39120719,1614.1,1613.8,3.2887099]
[1745317741842,6.19550245,1614.1,1613.8,3.2887099]
[1745317742339,7.00966993,1614.3,1613.8,15.68142191]
[1745317742527,7.00966993,1614.3,1613.8,9.48503252]
[1745317742528,6.19522693,1614.2,1613.8,9.48503252]
[1745317742728,7.00973849,1614.3,1613.9,6.19607645]
[1745317743030,7.00973849,1614.3,1614.0,3.2887099]
[1745317743225,12.27447645,1614.4,1614.0,3.2887099]
[1745317743226,6.19437419,1614.4,1614.0,10.3120695]
[1745317743405,6.19400252,1614.5,1614.2,3.2887099]
[1745317743735,6.1935988,1614.6,1614.2,9.94293638]
[1745317744046,6.1935988,1614.6,1614.4,3.2887099]
[1745317745252,6.1935988,1614.6,1614.4,3.75535089]
[1745317745456,12.27332048,1614.7,1614.4,0.46664099]
[1745317745669,6.19361108,1614.6,1614.3,1.3777]
[1745317747069,6.19386956,1614.5,1614.3,1.3777]
[1745317747771,6.19397454,1614.5,1614.3,1.3777]
[1745317748658,12.38748108,1614.6,1614.3,1.3777]
[1745317748847,12.38746067,1614.6,1614.3,1.3777]
[1745317749688,6.19371745,1614.6,1614.3,1.3777]
[1745317749890,12.38680273,1614.7,1614.3,1.3777]
[1745317750063,12.38680273,1614.7,1614.3,7.57230303]
[1745317750385,6.19333525,1614.7,1614.3,7.57221678]
[1745317750773,6.19333525,1614.7,1614.3,13.766621]
[1745317751086,6.19333525,1614.7,1614.3,7.57209891]
[1745317752183,6.19310369,1614.7,1614.3,13.76651135]
[1745317752395,12.38600849,1614.8,1614.5,0.55]
[1745317752554,6.19330538,1614.7,1614.5,0.55]
[1745317752755,6.19361001,1614.6,1614.4,0.55]
[1745317752957,6.19370434,1614.6,1614.3,0.8277]
[1745317753196,6.19370434,1614.6,1614.3,7.02232283]
[1745317753555,6.19327483,1614.7,1614.3,7.02232283]
[1745317753761,6.19327483,1614.7,1614.4,0.55]
[1745317754094,6.19289133,1614.8,1614.4,6.74413443]
[1745317754260,12.385901,1614.8,1614.4,6.74413443]
[1745317754462,6.19289133,1614.8,1614.4,6.74413443]
[1745317754980,6.19311665,1614.7,1614.4,6.74413443]
[1745317755488,6.19311665,1614.7,1614.4,0.55]
[1745317755694,6.19311665,1614.7,1614.5,0.778]
[1745317760239,6.19293311,1614.8,1614.5,0.778]
[1745317760240,6.19257052,1614.9,1614.5,6.97173848]
[1745317760507,6.19257052,1614.9,1614.6,0.55]
[1745317760871,12.38438481,1615.0,1614.6,0.55]
[1745317761073,6.19245574,1614.9,1614.6,0.55]
[1745317761286,6.19245574,1614.9,1614.6,6.637]
[1745317762015,6.9106,1615.3,1614.9,0.55]
[1745317762179,6.19135791,1615.2,1614.9,0.99343996]
[1745317762570,12.3828242,1615.2,1614.9,3.99343996]
[1745317762772,6.19135791,1615.2,1614.9,3.99343996]
[1745317763072,7.02147762,1615.3,1614.9,0.44343996]
[1745317763275,0.8306,1615.1,1614.5,9.97183917]
[1745317763474,6.19261322,1614.9,1614.5,3.778]
[1745317763704,6.19195046,1615.0,1614.5,3.778]
[1745317763987,6.19289907,1614.8,1614.5,3.778]
[1745317764725,6.19324144,1614.7,1614.5,0.778]
[1745317764924,6.19246974,1614.9,1614.5,3.778]
[1745317765229,12.38506796,1614.9,1614.5,9.9717091]
[1745317765403,12.38506796,1614.9,1614.6,3.28624426]
[1745317765404,6.19246974,1614.9,1614.6,3.28624426]
[1745317766922,12.27210619,1615.0,1614.6,3.28624426]
[1745317767130,6.19234414,1614.9,1614.6,3.28624426]
[1745317767431,6.19235872,1614.9,1614.6,3.28624426]
[1745317768329,12.27210619,1615.0,1614.6,3.28624426]
[1745317768330,6.08,1615.0,1614.7,0.55]
[1745317769432,12.27200455,1615.0,1614.7,0.55]
[1745317769907,6.19200455,1615.0,1614.7,0.55]
[1745317770534,12.38362376,1615.1,1614.8,3.28624426]
[1745317771033,12.38362376,1615.1,1614.8,4.08474426]
[1745317771332,6.19199098,1615.0,1614.8,4.08474426]
[1745317773211,6.19233389,1614.9,1614.5,4.5470028]
[1745317773542,6.19218256,1615.0,1614.7,3.28624426]
[1745317774244,12.38445087,1615.0,1614.7,3.28624426]
[1745317774551,6.19233415,1614.9,1614.7,3.28624426]
[1745317775345,6.19218256,1615.0,1614.7,3.28624426]
[1745317775643,12.38450364,1615.0,1614.7,3.28624426]
[1745317775802,6.19218256,1615.0,1614.7,3.28624426]
[1745317776007,6.19218256,1615.0,1614.8,3.0]
[1745317778152,6.94377603,1615.2,1614.5,6.99234575]
[1745317778316,12.38519505,1614.9,1614.6,0.55]
[1745317778517,6.19272604,1614.8,1614.6,0.55]
[1745317778714,6.19256489,1614.9,1614.6,0.55]
[1745317779044,12.38525417,1614.9,1614.6,0.55]
[1745317779250,6.19256489,1614.9,1614.6,0.55]
[1745317779436,6.19273308,1614.8,1614.6,0.55]
[1745317779648,6.19256489,1614.9,1614.6,0.55]
[1745317781017,6.19256489,1614.9,1614.5,7.08474426]
[1745317781018,6.19274807,1614.8,1614.5,7.08474426]
[1745317781234,6.19300957,1614.8,1614.5,7.08474426]
[1745317781451,12.38600209,1614.8,1614.5,7.08474426]
[1745317781658,6.1938587,1614.6,1614.3,1.22168849]
[1745317781953,6.19409449,1614.5,1614.3,0.46238849]
[1745317782153,6.19409449,1614.5,1614.3,3.0]
[1745317782326,6.19444183,1614.4,1614.2,5.922]
[1745317783138,12.3880793,1614.5,1614.2,5.922]
[1745317783443,12.38805328,1614.5,1614.2,5.922]
[1745317783651,12.38807082,1614.5,1614.2,5.922]
[1745317783821,6.1938952,1614.5,1614.2,5.922]
[1745317784562,6.99541076,1614.6,1614.2,12.11689958]
[1745317784736,6.19390004,1614.5,1614.3,3.0]
[1745317785358,6.99541076,1614.6,1614.3,3.0]
[1745317785565,6.99541076,1614.6,1614.3,6.28624426]
[1745317785861,6.19389603,1614.5,1614.3,6.28624426]
[1745317786249,6.19389603,1614.5,1614.3,7.04554426]
[1745317786849,6.19371076,1614.6,1614.3,7.04554426]
[1745317787964,12.2726814,1614.9,1614.6,0.7593]
[1745317788164,6.1927356,1614.8,1614.6,0.7593]
[1745317788330,6.1927356,1614.8,1614.6,3.7593]
[1745317790034,12.27255868,1614.9,1614.6,3.7593]
[1745317790355,6.8817,1615.1,1614.6,3.7593]
[1745317790555,6.19237394,1614.9,1614.7,3.28624426]
[1745317791561,6.19247122,1614.9,1614.7,3.28624426]
[1745317795082,6.19247122,1614.9,1614.7,3.7408403]
[1745317795235,6.19247122,1614.9,1614.7,3.28624426]
[1745317797476,12.38506432,1614.9,1614.7,3.28624426]
[1745317797677,6.19247122,1614.9,1614.7,3.28624426]
[1745317799550,12.38438478,1615.0,1614.7,3.28624426]
[1745317800095,12.38438478,1615.0,1614.7,3.74139695]
[1745317800378,6.99343351,1615.1,1614.8,3.0]
[1745317800682,6.19173351,1615.1,1614.8,3.0]
[1745317800873,7.01044104,1615.0,1614.6,6.5683]
[1745317801045,6.19252916,1614.9,1614.7,3.0]
[1745317801979,6.19252916,1614.9,1614.6,6.5683]
[1745317802184,12.38513828,1614.9,1614.6,6.5683]
[1745317802387,6.19273856,1614.8,1614.6,6.5683]
[1745317802566,6.19252916,1614.9,1614.6,6.5683]
[1745317802747,12.38515278,1614.9,1614.6,6.5683]
[1745317802948,6.19276731,1614.8,1614.6,6.5683]
[1745317803148,6.19271758,1614.8,1614.6,6.5683]
[1745317803377,12.38521351,1614.9,1614.6,6.5683]
[1745317803689,6.19252916,1614.9,1614.6,6.5683]
[1745317804849,6.19282791,1614.8,1614.6,7.03573076]
[1745317805147,6.08,1614.9,1614.4,0.8154]
[1745317805348,6.19349854,1614.6,1614.4,0.8154]
[1745317805552,6.19351138,1614.6,1614.4,0.8154]
[1745317806566,6.19386807,1614.5,1614.3,5.809]
[1745317807646,6.19371546,1614.6,1614.3,5.809]
[1745317807849,6.19396665,1614.5,1614.3,5.809]
[1745317808487,6.19369317,1614.6,1614.3,5.809]
[1745317808676,12.38751531,1614.6,1614.3,9.09524426]
[1745317808986,6.19369317,1614.6,1614.3,9.09524426]
[1745317809200,6.1933431,1614.7,1614.4,0.81]
[1745317809413,6.19349501,1614.6,1614.4,0.81]
[1745317809615,6.19350914,1614.6,1614.4,0.81]
[1745317809920,6.1933431,1614.7,1614.4,0.81]
[1745317810091,12.38676895,1614.7,1614.4,0.81]
[1745317810263,6.19363023,1614.6,1614.4,0.81]
[1745317810464,6.19363023,1614.6,1614.3,9.09524426]
[1745317810666,6.19363023,1614.6,1614.3,9.54885176]
[1745317812905,6.19363023,1614.6,1614.4,0.8276]
[1745317816595,6.19332268,1614.7,1614.4,0.8276]
[1745317817590,6.19332268,1614.7,1614.5,3.28624426]
[1745317820282,12.38591528,1614.8,1614.5,3.28624426]
[1745317820580,6.19310217,1614.7,1614.5,3.28624426]
[1745317820916,6.19310217,1614.7,1614.5,3.69762869]
[1745317821313,6.19310217,1614.7,1614.5,3.28624426]
[1745317821615,6.19291874,1614.8,1614.5,3.28624426]
[1745317823584,6.96478885,1614.9,1614.6,3.0]
[1745317823585,13.15739729,1614.9,1614.6,3.0]
[1745317823808,13.15740708,1614.9,1614.6,3.0]
[1745317824012,6.19258885,1614.9,1614.6,3.0]
[1745317824221,12.38433566,1615.0,1614.6,3.0]
[1745317824513,6.19172377,1615.1,1614.9,3.28624426]
[1745317824719,0.1,1615.4,1615.0,3.8113]
[1745317824876,0.1,1615.4,1615.3,6.28624426]
[1745317825925,0.1,1615.4,1615.1,9.48524426]
[1745317826097,6.190954,1615.3,1615.2,3.55]
[1745317826622,6.29057933,1615.4,1615.2,3.55]
[1745317827187,6.29045348,1615.4,1615.2,3.55]
[1745317827382,6.19080047,1615.3,1615.2,3.0]
[1745317827612,6.29045348,1615.4,1615.2,3.0]
[1745317827798,12.48117161,1615.4,1615.2,3.0]
[1745317827998,6.29045348,1615.4,1615.2,3.0]
[1745317831706,0.1,1615.4,1615.2,3.0]
[1745317832109,0.1,1615.4,1615.3,3.83624426]
[1745317832345,0.1,1615.4,1615.3,4.64754426]
[1745317832991,0.1,1615.4,1615.3,56.89947273]
[1745317833191,0.1,1615.4,1615.3,40.04669073]
[1745317833504,0.1,1615.4,1615.3,31.51980973]
[1745317833699,0.1,1615.4,1615.3,31.25584373]
[1745317833912,0.1,1615.4,1615.3,18.272724]
[1745317834118,0.1,1615.4,1615.3,12.90410047]
[1745317834341,0.1,1615.4,1615.3,3.0]
[1745317836022,0.1,1615.4,1615.3,3.55]
[1745317836196,0.1,1615.4,1615.3,27.36056747]
[1745317836529,0.1,1615.4,1615.3,21.46924347]
[1745317836732,0.1,1615.4,1615.3,16.28028647]
[1745317837111,0.1,1615.4,1615.3,10.089486]
[1745317837308,0.1,1615.4,1615.3,13.49010047]
[1745317837497,0.1,1615.4,1615.3,10.55210047]
[1745317837696,0.1,1615.4,1615.3,14.04184747]
[1745317840236,6.1885055,1615.9,1615.6,1.3825]
[1745317840533,6.1885055,1615.9,1615.7,3.0]
[1745317841105,6.18831447,1616.0,1615.7,3.0]
[1745317841541,12.37677001,1616.0,1615.7,3.0]
[1745317841707,12.37671124,1616.0,1615.7,3.0]
[1745317841906,12.37677704,1616.0,1615.7,3.0]
[1745317842109,6.18858385,1615.9,1615.7,3.0]
[1745317842441,6.18831447,1616.0,1615.8,0.55]
[1745317842733,6.18831447,1616.0,1615.8,4.19124426]
[1745317843040,6.18850176,1615.9,1615.8,0.355]
[1745317843242,6.18933787,1615.7,1615.6,3.0]
[1745317843422,6.18897172,1615.8,1615.6,3.0]
[1745317843950,6.97432971,1615.9,1615.6,6.28624426]
[1745317844155,6.18825712,1616.0,1615.6,12.47587229]
[1745317844324,6.18850241,1615.9,1615.6,6.28624426]
[1745317846315,6.18825712,1616.0,1615.6,12.47587622]
[1745317847044,12.37668621,1616.0,1615.6,12.47587622]
[1745317847642,12.37673746,1616.0,1615.6,12.47585717]
[1745317847847,6.18825712,1616.0,1615.6,12.47585717]
[1745317848048,6.18825712,1616.0,1615.7,0.8325]
[1745317848216,12.37668189,1616.0,1615.7,0.8325]
[1745317848412,6.18825712,1616.0,1615.7,0.8325]
[1745317850544,6.188539,1615.9,1615.7,0.8325]
[1745317850849,6.18825712,1616.0,1615.7,0.8325]
[1745317851213,6.18851434,1615.9,1615.7,0.8325]
[1745317851750,6.18825712,1616.0,1615.7,0.8325]
[1745317852120,12.37662792,1616.0,1615.7,0.8325]
[1745317852547,6.18825712,1616.0,1615.7,0.8325]
[1745317852849,12.37667136,1616.0,1615.7,0.8325]
[1745317853147,6.18825712,1616.0,1615.7,0.8325]
[1745317853349,6.18825833,1616.0,1615.7,0.8325]
[1745317854420,6.18825833,1616.0,1615.7,0.55]
[1745317854622,6.1892678,1615.7,1615.6,3.0]
[1745317854939,6.18850734,1615.9,1615.6,6.28624426]
[1745317855861,6.18900644,1615.8,1615.6,6.28624426]
[1745317856446,12.37732039,1615.9,1615.6,6.28624426]
[1745317856620,6.18850734,1615.9,1615.6,6.28624426]
[1745317858560,6.18850734,1615.9,1615.6,3.0]
[1745317858771,6.18850176,1615.9,1615.5,5.646]
[1745317858972,6.18941965,1615.7,1615.5,5.646]
[1745317860933,6.18888476,1615.8,1615.6,3.0]
[1745317861923,6.1882717,1616.0,1615.7,0.7898]
[1745317863363,6.18793959,1616.1,1615.8,6.28624426]
[1745317864361,6.96598737,1616.2,1615.8,6.75591574]
[1745317864559,6.18758737,1616.2,1615.8,10.00654686]
[1745317864925,6.18758737,1616.2,1615.8,15.57254686]
[1745317865166,6.18758737,1616.2,1615.8,15.51066677]
[1745317865953,6.18774886,1616.1,1615.8,8.85224426]
[1745317867165,6.18849302,1616.0,1615.8,5.566]
[1745317867338,6.18850176,1615.9,1615.8,5.566]
[1745317867543,6.9668843,1616.0,1615.8,5.566]
[1745317867857,6.9668202,1616.0,1615.8,5.566]
[1745317868060,6.18759833,1616.2,1615.9,3.0]
[1745317868257,12.37531087,1616.2,1615.9,3.0]
[1745317868443,6.18759833,1616.2,1615.9,3.0]
[1745317868645,12.37579471,1616.1,1615.9,3.0]
[1745317868962,6.18850176,1615.9,1615.8,5.566]
[1745317869972,6.96627461,1616.1,1615.8,5.566]
[1745317870172,6.18787461,1616.1,1615.9,3.0]
[1745317870941,6.95790142,1616.2,1615.9,3.0]
[1745317871576,13.14556005,1616.2,1615.9,3.0]
[1745317871940,6.95790142,1616.2,1615.9,3.0]
[1745317872275,6.18774653,1616.1,1615.9,3.0]
[1745317873375,6.18773801,1616.1,1615.9,3.0]
[1745317874171,13.14558325,1616.2,1615.9,3.0]
[1745317874478,6.18755629,1616.2,1615.9,3.0]
[1745317875337,13.03755467,1616.3,1615.9,12.4746361]
[1745317875576,6.95755467,1616.3,1615.9,12.4746361]
[1745317876469,0.1,1616.4,1616.1,13.30482863]
[1745317876690,0.1,1616.4,1616.1,13.30473465]
[1745317877061,0.1,1616.4,1616.3,13.0232145]
[1745317877263,0.1,1616.4,1616.3,13.8542145]
[1745317877811,0.1,1616.4,1616.3,14.31248033]
[1745317878101,0.1,1616.4,1616.3,8.12551009]
[1745317878766,0.1,1616.4,1616.3,3.0]
[1745317879461,7.09158747,1616.4,1616.3,3.0]
[1745317879661,8.41938525,1616.4,1616.1,3.0]
[1745317879862,8.41938525,1616.4,1616.0,5.565]
[1745317879863,6.18713096,1616.3,1616.0,5.565]
[1745317880364,6.18713096,1616.3,1616.1,3.0]
[1745317880867,7.09176507,1616.4,1616.1,3.0]
[1745317880868,13.27861647,1616.4,1616.1,3.0]
[1745317881315,7.09176507,1616.4,1616.1,3.0]
[1745317882299,6.18700057,1616.3,1616.1,3.0]
[1745317883008,7.09176507,1616.4,1616.1,3.0]
[1745317884604,13.27863042,1616.4,1616.1,3.0]
[1745317884803,7.09176507,1616.4,1616.1,3.0]
[1745317885171,13.27863398,1616.4,1616.1,3.0]
[1745317885503,6.18698089,1616.3,1616.1,3.0]
[1745317885991,6.18697986,1616.3,1616.1,3.0]
[1745317886396,6.18735305,1616.2,1616.1,3.0]
[1745317887180,6.18697986,1616.3,1616.1,3.0]
[1745317887682,12.37422193,1616.3,1616.1,3.0]
[1745317887872,6.18697986,1616.3,1616.1,3.0]
[1745317888071,12.32425833,1616.3,1616.1,3.0]
[1745317888581,6.13697986,1616.3,1616.1,3.0]
[1745317888783,0.1,1616.4,1616.1,6.28624426]
[1745317888999,6.2868166,1616.4,1616.1,6.28624426]
[1745317890576,0.1,1616.4,1616.1,6.28624426]
[1745317890771,0.1,1616.4,1616.2,0.8321]
[1745317891379,0.05,1616.4,1616.2,0.8321]
[1745317891582,0.05,1616.4,1616.2,7.01939122]
[1745317892073,0.05,1616.4,1616.3,13.0232145]
[1745317893108,0.05,1616.4,1616.3,13.8553145]